bitfinex-derivatives/quotes_SOLF0:USTF0_20250816
["timestamp","ask_amount","ask_price","bid_price","bid_amount"]
[1755361329793,6.76219564,189.11,189.02,3.09]
[1755361329986,2.50443725,189.12,189.02,3.09]
[1755361329987,2.82,189.1,189.02,3.09]
[1755361334308,5.2866,189.03,189.02,3.09]
[1755361336598,2.82,189.05,188.98,5.59443725]
[1755361336803,2.82,189.05,188.99,3.09]
[1755361337203,8.1075,189.0,188.99,3.09]
[1755361337905,5.2875,189.0,188.99,3.09]
[1755361339303,13.07453725,189.09,188.99,3.09]
[1755361339304,2.9,189.04,188.99,3.09]
[1755361339802,2.9,189.03,188.99,3.09]
[1755361340195,2.9,189.02,188.99,3.09]
[1755361340399,5.2875,189.0,188.99,3.09]
[1755361340805,8.1875,189.0,188.99,3.09]
[1755361344508,2.9,189.0,188.93,5.2894]
[1755361344708,2.9,189.05,188.94,2.87]
[1755361346114,2.9,189.05,188.97,2.87]
[1755361348012,2.9,189.05,188.97,8.1583]
[1755361348212,2.9,189.05,188.98,2.87]
[1755361348414,2.9,189.05,189.0,2.87]
[1755361349515,2.9,189.11,189.0,2.87]
[1755361349813,5.2871,189.02,189.0,2.87]
[1755361350016,2.9,189.05,189.0,2.87]
[1755361350312,2.9,189.07,189.0,2.87]
[1755361351014,5.2868,189.03,189.0,2.87]
[1755361351212,2.9,189.07,189.0,2.87]
[1755361351816,5.2872,189.01,189.0,2.87]
[1755361352418,8.1872,189.01,189.0,2.87]
[1755361353517,5.2883,188.97,188.96,5.37443725]
[1755361355615,5.2883,188.97,188.96,2.50443725]
[1755361355817,5.2889,188.95,188.94,2.87]
[1755361357318,5.2887,188.96,188.94,2.87]
[1755361357517,2.9,188.97,188.94,2.87]
[1755361358522,8.1886,188.96,188.94,2.87]
[1755361358715,8.1886,188.96,188.95,2.87]
[1755361359220,5.2891,188.94,188.93,2.50443725]
[1755361359422,8.1891,188.94,188.93,5.37443725]
[1755361360315,5.2891,188.94,188.93,5.37443725]
[1755361361624,8.1891,188.94,188.93,5.37443725]
[1755361362021,2.9,188.94,188.91,2.87]
[1755361362623,2.9,188.94,188.9,2.87]
[1755361364826,2.9,188.94,188.84,90.56814388]
[1755361364827,2.9,188.94,188.85,2.50443725]
[1755361365026,2.9,188.94,188.85,5.37443725]
[1755361365426,2.9,188.94,188.88,2.50443725]
[1755361365627,2.9,188.94,188.89,2.87]
[1755361366132,2.9,188.94,188.9,2.87]
[1755361366424,2.9,188.94,188.88,2.50443725]
[1755361366425,2.9,188.94,188.88,2.87]
[1755361367127,2.9,188.89,188.88,2.87]
[1755361367327,2.9,188.88,188.87,5.37443725]
[1755361369227,8.1908,188.88,188.87,5.37443725]
[1755361369431,3.1,188.99,188.88,2.9]
[1755361369622,3.1,188.97,188.88,2.9]
[1755361370128,3.1,188.94,188.88,2.9]
[1755361371332,5.29,188.91,188.88,2.9]
[1755361371529,8.39,188.91,188.88,2.9]
[1755361372329,3.1,188.9,188.89,2.9]
[1755361372530,8.3902,188.9,188.89,2.9]
[1755361373632,3.1,188.9,188.89,2.9]
[1755361374431,8.3902,188.9,188.89,2.9]
[1755361377231,5.29,188.91,188.89,2.9]
[1755361378031,8.3898,188.92,188.89,5.2905]
[1755361378228,8.3898,188.92,188.91,2.9]
[1755361381830,8.3898,188.92,188.87,2.9]
[1755361381831,3.1,188.92,188.87,2.9]
[1755361382241,3.1,188.92,188.86,5.40443725]
[1755361382426,3.1,188.92,188.86,2.9]
[1755361384335,3.1,188.92,188.84,92.54689967]
[1755361384733,3.1,188.92,188.84,97.83879967]
[1755361385033,3.1,188.92,188.84,89.64689967]
[1755361385235,3.1,188.92,188.85,2.9]
[1755361386134,3.1,188.92,188.83,46.50443725]
[1755361386339,3.1,188.92,188.84,2.9]
[1755361386833,3.1,188.92,188.82,490.7124]
[1755361386834,3.1,188.92,188.82,130.04]
[1755361387035,2.50443725,188.91,188.82,130.04]
[1755361387229,3.1,188.9,188.82,130.04]
[1755361388036,3.1,188.9,188.8,5.40443725]
[1755361388239,3.1,188.9,188.8,2.9]
[1755361392437,3.1,188.9,188.8,2.50443725]
[1755361392632,3.1,188.9,188.81,2.9]
[1755361393143,3.1,188.87,188.78,2.9]
[1755361396147,5.2933,188.79,188.78,2.9]
[1755361396441,3.1,188.79,188.76,2.9]
[1755361396651,2.50443725,188.88,188.73,5.2949]
[1755361396652,3.1,188.78,188.77,2.9]
[1755361397344,8.3936,188.78,188.77,2.9]
[1755361397939,5.2936,188.78,188.77,2.9]
[1755361402851,8.3436,188.78,188.77,2.9]
[1755361403148,5.2936,188.78,188.77,2.9]
[1755361405050,3.05,188.8,188.77,2.9]
[1755361405648,8.3433,188.8,188.77,8.1939]
[1755361405950,8.3433,188.8,188.79,3.1]
[1755361406151,5.2926,188.82,188.79,8.3933]
[1755361406350,3.05,188.87,188.79,3.1]
[1755361407948,3.05,188.82,188.79,3.1]
[1755361408146,3.05,188.9,188.79,3.1]
[1755361408347,3.05,188.88,188.79,3.1]
[1755361408548,3.05,188.86,188.79,3.1]
[1755361410052,3.05,188.8,188.77,3.1]
[1755361410441,8.3436,188.78,188.77,3.1]
[1755361414954,5.2936,188.78,188.77,3.1]
[1755361415655,5.294,188.77,188.73,51.79923725]
[1755361415856,8.344,188.77,188.74,3.1]
[1755361416245,3.05,188.77,188.75,3.1]
[1755361416449,5.2937,188.78,188.75,3.1]
[1755361416656,3.05,188.79,188.75,8.3942]
[1755361416959,8.3434,188.79,188.76,3.1]
[1755361417356,5.2936,188.78,188.76,3.1]
[1755361417554,8.3436,188.78,188.76,3.1]
[1755361417754,8.3436,188.78,188.77,3.1]
[1755361418156,3.05,188.87,188.78,3.1]
[1755361418356,3.05,188.87,188.81,3.1]
[1755361419058,3.05,188.87,188.77,129.92]
[1755361419251,3.9240444,188.86,188.77,2.50443725]
[1755361419557,3.05,188.85,188.78,3.1]
[1755361419949,3.05,188.85,188.79,5.2932]
[1755361420153,3.05,188.85,188.81,3.1]
[1755361421958,3.05,188.85,188.77,7.79823725]
[1755361422161,3.05,188.85,188.78,3.1]
[1755361422363,3.05,188.85,188.76,3.1]
[1755361424158,3.9298485,188.84,188.76,3.1]
[1755361424358,3.05,188.83,188.75,130.34]
[1755361424563,5.0088745,188.76,188.57,11.845561]
[1755361424857,3.05,188.68,188.58,3.1]
[1755361425064,2.50443725,188.66,188.58,3.1]
[1755361425258,3.05,188.64,188.58,3.1]
[1755361425458,3.05,188.62,188.58,3.1]
[1755361425767,5.66934382,188.61,188.54,3.1]
[1755361426064,8.71934382,188.6,188.54,3.1]
[1755361426260,8.71934382,188.59,188.54,3.1]
[1755361426464,5.66934382,188.58,188.54,3.1]
[1755361426671,5.2989,188.6,188.54,3.1]
[1755361426865,8.84736601,188.59,188.54,3.1]
[1755361427064,5.79736601,188.58,188.54,3.1]
[1755361427262,3.05,188.58,188.5,2.50443725]
[1755361427563,3.05,188.56,188.51,3.1]
[1755361427764,5.3004,188.54,188.51,3.1]
[1755361427964,3.05,188.55,188.51,3.1]
[1755361428167,3.05,188.55,188.53,3.1]
[1755361428360,5.3003,188.54,188.53,3.1]
[1755361428564,5.78431042,188.54,188.51,2.97]
[1755361428864,2.85,188.59,188.51,2.97]
[1755361429165,5.78502212,188.58,188.5,2.50443725]
[1755361429460,5.78502212,188.57,188.53,2.97]
[1755361429666,5.78502212,188.56,188.53,2.97]
[1755361429861,2.85,188.54,188.52,2.97]
[1755361430059,2.85,188.54,188.53,2.97]
[1755361430254,8.62978753,188.54,188.53,2.97]
[1755361430465,13.93028753,188.54,188.53,2.97]
[1755361431264,5.77978753,188.54,188.53,2.97]
[1755361431565,5.77978753,188.54,188.53,5.47443725]
[1755361431961,5.77978753,188.54,188.53,2.97]
[1755361432157,2.50443725,188.64,188.52,2.97]
[1755361432359,5.3006,188.53,188.52,2.97]
[1755361432566,13.73496788,188.53,188.52,2.97]
[1755361433063,5.58436788,188.53,188.52,2.97]
[1755361433969,8.43436788,188.53,188.52,2.97]
[1755361434172,5.58436788,188.53,188.52,2.97]
[1755361436070,5.58436788,188.53,188.52,8.2709]
[1755361436567,5.58436788,188.53,188.52,2.97]
[1755361437171,8.43436788,188.53,188.52,2.97]
[1755361437368,5.58436788,188.53,188.52,2.97]
[1755361437768,5.58436788,188.53,188.52,8.8109]
[1755361437965,2.85,188.58,188.52,3.51]
[1755361438169,2.85,188.58,188.52,2.97]
[1755361438372,2.85,188.58,188.55,5.3001]
[1755361438570,2.85,188.58,188.57,2.97]
[1755361438768,4.17484249,188.58,188.56,2.97]
[1755361438968,2.50443725,188.67,188.54,2.50443725]
[1755361439173,2.85,188.59,188.58,2.97]
[1755361439371,2.85,188.61,188.59,2.97]
[1755361439570,1.32470342,188.6,188.59,2.97]
[1755361439971,4.17470342,188.6,188.59,2.97]
[1755361440171,2.85,188.59,188.56,2.97]
[1755361440375,2.85,188.6,188.59,2.97]
[1755361440575,356.02,188.69,188.6,2.97]
[1755361440878,2.85,188.67,188.6,2.97]
[1755361441075,2.85,188.65,188.6,2.97]
[1755361441269,8.1478,188.63,188.61,2.97]
[1755361441471,2.50443725,188.71,188.55,2.97]
[1755361441472,2.85,188.61,188.55,2.97]
[1755361441679,5.2997,188.57,188.53,2.97]
[1755361441878,2.85,188.55,188.54,2.97]
[1755361442776,8.1501,188.55,188.54,2.97]
[1755361442976,2.85,188.55,188.54,2.97]
[1755361443478,5.2998,188.56,188.52,5.3009]
[1755361443679,2.85,188.56,188.55,2.97]
[1755361443877,4.17495328,188.56,188.55,2.97]
[1755361444073,1.32495328,188.56,188.55,2.97]
[1755361444374,2.85,188.67,188.55,2.97]
[1755361444578,5.298,188.63,188.58,8.2691]
[1755361444774,2.85,188.67,188.58,2.97]
[1755361444978,2.85,188.67,188.6,2.50443725]
[1755361445177,2.85,188.66,188.63,2.97]
[1755361445380,2.85,188.65,188.6,2.50443725]
[1755361445581,8.1473,188.65,188.61,2.97]
[1755361445781,2.85,188.64,188.61,2.97]
[1755361445981,2.85,188.64,188.62,2.97]
[1755361446381,2.50443725,188.74,188.62,2.97]
[1755361446683,2.85,188.64,188.63,2.97]
[1755361446884,2.85,188.63,188.61,2.97]
[1755361447080,2.50443725,188.71,188.59,5.47443725]
[1755361447284,4.10744241,188.7,188.6,2.97]
[1755361447583,2.85,188.68,188.6,2.97]
[1755361448184,5.35443725,188.74,188.6,2.97]
[1755361448483,2.85,188.72,188.6,2.97]
[1755361448675,2.50443725,188.74,188.6,2.97]
[1755361448676,4.10637967,188.71,188.6,2.97]
[1755361448880,5.2967,188.67,188.62,5.2981]
[1755361449183,2.85,188.65,188.63,2.97]
[1755361449583,2.85,188.64,188.63,2.97]
[1755361449882,2.85,188.73,188.63,2.97]
[1755361450085,2.85,188.71,188.63,2.97]
[1755361450283,2.85,188.69,188.63,2.97]
[1755361450584,2.85,188.65,188.63,2.97]
[1755361450978,5.30335572,188.64,188.6,2.97]
[1755361451173,6.94424268,188.74,188.6,2.97]
[1755361451382,2.85,188.62,188.6,2.97]
[1755361451679,2.85,188.61,188.6,2.97]
[1755361452583,2.85,188.6,188.59,2.50443725]
[1755361452885,2.85,188.62,188.6,2.97]
[1755361453087,2.50443725,188.71,188.6,2.97]
[1755361453287,2.85,188.61,188.6,2.97]
[1755361453982,2.85,188.7,188.6,2.97]
[1755361454185,2.85,188.68,188.6,2.97]
[1755361454385,2.85,188.66,188.6,2.97]
[1755361454585,8.15724899,188.65,188.61,5.2981]
[1755361454786,5.30724899,188.64,188.63,2.97]
[1755361455190,2.85,188.67,188.63,2.97]
[1755361455888,2.85,188.67,188.63,8.2676]
[1755361456090,2.85,188.67,188.63,5.2976]
[1755361456394,2.85,188.67,188.66,2.97]
[1755361458699,2.88,188.75,188.66,2.97]
[1755361458895,2.88,188.73,188.66,2.97]
[1755361459094,1.32417786,188.72,188.68,5.2964]
[1755361459297,2.88,188.7,188.69,3.05]
[1755361461089,2.50443725,188.79,188.67,5.2966]
[1755361461289,2.88,188.69,188.68,3.05]
[1755361462500,2.88,188.75,188.69,3.05]
[1755361462802,2.88,188.74,188.69,3.05]
[1755361463005,2.50443725,188.82,188.73,3.05]
[1755361463201,2.50443725,188.82,188.71,2.50443725]
[1755361463202,2.88,188.75,188.74,3.05]
[1755361463408,4.20375838,188.75,188.72,3.05]
[1755361463701,2.88,188.74,188.72,3.05]
[1755361463901,2.88,188.74,188.73,3.05]
[1755361464906,5.2944,188.76,188.73,3.05]
[1755361465107,2.88,188.74,188.73,3.05]
[1755361465309,2.88,188.76,188.72,3.05]
[1755361465600,2.88,188.83,188.74,3.05]
[1755361465904,2.88,188.81,188.73,3.05]
[1755361466102,2.88,188.79,188.73,3.05]
[1755361466296,2.88,188.75,188.73,3.05]
[1755361466497,2.88,188.74,188.73,3.05]
[1755361466703,5.2939,188.77,188.74,5.2946]
[1755361466898,4.43980543,188.83,188.73,3.05]
[1755361466899,2.88,188.75,188.73,3.05]
[1755361467095,2.88,188.75,188.74,3.05]
[1755361468001,4.43980543,188.83,188.74,3.05]
[1755361468205,10.42408579,188.82,188.74,3.05]
[1755361468413,2.88,188.77,188.75,3.05]
[1755361468708,1.32370041,188.76,188.75,3.05]
[1755361468897,4.20370041,188.76,188.73,8.3449]
[1755361469096,2.88,188.82,188.73,8.3449]
[1755361469303,10.42373561,188.81,188.73,8.3449]
[1755361469502,2.88,188.75,188.74,3.05]
[1755361470207,8.1745,188.75,188.74,3.05]
[1755361470409,2.88,188.74,188.73,3.05]
[1755361470705,5.2945,188.75,188.72,8.3452]
[1755361470917,2.88,188.74,188.72,8.3452]
[1755361471210,2.88,188.74,188.73,3.05]
[1755361471711,2.88,188.74,188.73,8.345]
[1755361473308,2.88,188.74,188.73,3.05]
[1755361474113,2.88,188.76,188.72,5.2952]
[1755361474315,2.88,188.76,188.74,3.05]
[1755361474918,5.2939,188.77,188.74,3.05]
[1755361475213,2.88,188.75,188.74,3.05]
[1755361475813,2.88,188.74,188.73,3.05]
[1755361477118,5.2942,188.76,188.72,5.2952]
[1755361477314,2.88,188.75,188.72,5.2952]
[1755361477514,5.2942,188.76,188.73,3.05]
[1755361477714,2.88,188.74,188.73,3.05]
[1755361478124,2.50443725,188.84,188.71,2.50443725]
[1755361478324,2.88,188.8,188.68,2.50443725]
[1755361478515,10.41677193,188.79,188.67,3.05]
[1755361478715,2.88,188.77,188.67,3.05]
[1755361478915,2.88,188.75,188.67,3.05]
[1755361479116,5.2956,188.72,188.68,5.2964]
[1755361479320,2.88,188.7,188.69,3.05]
[1755361479521,2.88,188.7,188.67,3.05]
[1755361479821,4.43980543,188.8,188.67,3.05]
[1755361480021,2.88,188.69,188.67,3.05]
[1755361480217,2.88,188.77,188.65,2.50443725]
[1755361480419,2.88,188.75,188.65,2.50443725]
[1755361480612,5.2965,188.68,188.65,2.50443725]
[1755361480918,2.88,188.73,188.62,134.16443725]
[1755361481114,10.42901174,188.72,188.62,131.66]
[1755361481320,5.2972,188.66,188.62,131.66]
[1755361481516,5.2972,188.66,188.62,134.71]
[1755361481820,2.88,188.64,188.62,134.71]
[1755361482020,2.88,188.64,188.62,140.0081]
[1755361482215,2.88,188.66,188.62,131.66]
[1755361482412,2.88,188.66,188.65,3.05]
[1755361483318,2.88,188.74,188.64,3.05]
[1755361483619,2.88,188.72,188.67,3.05]
[1755361483814,2.50443725,188.78,188.67,3.05]
[1755361483815,2.88,188.71,188.68,5.2964]
[1755361484118,2.88,188.71,188.7,3.05]
[1755361491529,8.1756,188.71,188.7,3.05]
[1755361491726,8.1756,188.71,188.68,5.2961]
[1755361492028,3.06,188.7,188.69,2.83]
[1755361496728,3.06,188.7,188.69,8.1261]
[1755361497128,3.06,188.71,188.69,5.2961]
[1755361497434,3.06,188.71,188.7,2.83]
[1755361497939,136.07980543,188.79,188.71,2.83]
[1755361497940,3.06,188.78,188.71,2.83]
[1755361498135,10.44968268,188.77,188.71,2.83]
[1755361498335,5.295,188.74,188.72,2.83]
[1755361498540,3.06,188.73,188.72,2.83]
[1755361500239,8.355,188.73,188.72,2.83]
[1755361500533,131.64,188.79,188.72,2.83]
[1755361500731,3.06,188.77,188.72,2.83]
[1755361501042,3.06,188.75,188.7,2.50443725]
[1755361501235,3.06,188.75,188.74,2.83]
[1755361501427,3.06,188.75,188.72,5.2951]
[1755361501632,3.06,188.74,188.73,2.83]
[1755361501828,4.43980543,188.81,188.7,2.50443725]
[1755361502034,3.06,188.73,188.72,2.83]
[1755361502738,3.06,188.73,188.72,8.1253]
[1755361503839,3.06,188.73,188.72,2.83]
[1755361505127,3.06,188.73,188.67,46.50443725]
[1755361505330,3.06,188.73,188.67,5.33443725]
[1755361505731,3.06,188.73,188.67,10.63103725]
[1755361506138,3.06,188.73,188.67,5.33443725]
[1755361506341,3.06,188.73,188.65,5.33443725]
[1755361506732,3.06,188.73,188.65,10.63143725]
[1755361507444,4.15334209,188.72,188.65,5.33443725]
[1755361507644,3.06,188.71,188.65,5.33443725]
[1755361508040,3.06,188.71,188.65,10.63163725]
[1755361508443,3.06,188.71,188.65,5.33443725]
[1755361508640,3.06,188.71,188.63,8.1277]
[1755361508843,4.15123095,188.7,188.63,2.83]
[1755361509037,7.21099112,188.69,188.62,131.66]
[1755361509247,3.06,188.69,188.62,131.66]
[1755361509743,3.06,188.69,188.62,134.49]
[1755361510442,3.06,188.63,188.62,134.49]
[1755361510948,5.2975,188.65,188.62,139.7881]
[1755361511149,3.06,188.64,188.63,2.83]
[1755361511751,5.2975,188.65,188.63,2.83]
[1755361511952,4.43980543,188.74,188.64,2.83]
[1755361512249,3.06,188.66,188.64,2.83]
[1755361512445,3.06,188.65,188.63,2.83]
[1755361512750,3.06,188.64,188.63,2.83]
[1755361512955,8.3575,188.64,188.63,2.83]
[1755361513358,3.06,188.63,188.62,134.49]
[1755361513857,3.06,188.63,188.62,139.7881]
[1755361514058,5.2973,188.65,188.62,139.7881]
[1755361514255,3.06,188.64,188.63,2.83]
[1755361515458,3.06,188.65,188.63,8.1278]
[1755361515659,3.06,188.65,188.64,2.83]
[1755361518059,8.357,188.66,188.64,2.83]
[1755361518261,3.06,188.66,188.64,2.83]
[1755361518457,3.06,188.68,188.64,2.50443725]
[1755361518760,3.06,188.68,188.67,2.83]
[1755361519460,3.06,188.68,188.64,2.50443725]
[1755361519663,3.06,188.68,188.64,5.55443725]
[1755361519960,2.9,188.66,188.64,5.55443725]
[1755361520261,2.9,188.66,188.63,3.05]
[1755361521260,5.2974,188.65,188.63,3.05]
[1755361521465,2.9,188.64,188.63,3.05]
[1755361521758,2.9,188.64,188.62,131.66]
[1755361522157,2.9,188.63,188.59,8.3488]
[1755361522354,2.9,188.63,188.6,3.05]
[1755361522558,8.1979,188.63,188.6,3.05]
[1755361522758,8.1979,188.63,188.59,5.2988]
[1755361522759,2.9,188.62,188.61,3.05]
[1755361523866,2.9,188.62,188.59,3.05]
[1755361525261,2.9,188.6,188.58,133.48443725]
[1755361525460,4.43980543,188.7,188.58,136.53443725]
[1755361525461,2.9,188.59,188.58,136.53443725]
[1755361526265,8.1989,188.59,188.58,136.53443725]
[1755361526462,8.1989,188.59,188.58,133.48443725]
[1755361526857,8.1989,188.59,188.58,130.98]
[1755361527563,8.1995,188.57,188.56,3.05]
[1755361527956,5.2998,188.56,188.55,130.94]
[1755361528562,8.1998,188.56,188.55,130.94]
[1755361529864,8.1998,188.56,188.55,133.99]
[1755361530457,2.9,188.56,188.55,133.99]
[1755361530657,2.9,188.65,188.56,3.05]
[1755361530859,2.9,188.63,188.56,3.05]
[1755361531056,8.1995,188.57,188.56,3.05]
[1755361531670,5.2998,188.56,188.55,130.94]
[1755361531868,8.1998,188.56,188.55,133.99]
[1755361532967,8.1998,188.56,188.55,130.94]
[1755361535068,2.9,188.56,188.52,130.82]
[1755361535268,2.9,188.56,188.52,133.87]
[1755361535574,8.2007,188.53,188.52,130.82]
[1755361536167,2.9,188.52,188.51,5.55443725]
[1755361536470,2.9,188.51,188.49,130.8]
[1755361537368,5.3015,188.5,188.49,133.85]
[1755361537669,8.2015,188.5,188.49,133.85]
[1755361537869,8.2015,188.5,188.49,130.8]
[1755361538069,8.2026,188.46,188.43,89.17375474]
[1755361538270,8.2026,188.46,188.45,3.05]
[1755361538673,2.9,188.46,188.44,130.86]
[1755361538874,2.9,188.56,188.44,130.86]
[1755361539062,2.9,188.53,188.44,130.86]
[1755361540071,2.9,188.53,188.38,2.50443725]
[1755361540272,2.9,188.5,188.39,133.93]
[1755361541672,2.9,188.47,188.4,3.05]
[1755361542075,2.9,188.47,188.41,8.3538]
[1755361542274,2.9,188.47,188.41,3.05]
[1755361542479,2.9,188.47,188.43,2.50443725]
[1755361542771,2.9,188.47,188.44,3.05]
[1755361543370,2.9,188.47,188.44,5.3029]
[1755361543570,2.9,188.47,188.46,3.05]
[1755361543971,2.9,188.49,188.46,5.55443725]
[1755361544178,2.9,188.51,188.47,3.05]
[1755361544878,2.9,188.52,188.48,3.05]
[1755361545275,2.9,188.51,188.48,3.05]
[1755361545476,2.9,188.52,188.48,3.05]
[1755361545681,2.9,188.57,188.48,3.05]
[1755361546074,5.40443725,188.57,188.46,2.50443725]
[1755361546275,2.9,188.55,188.45,3.05]
[1755361546474,10.31632163,188.54,188.45,3.05]
[1755361546675,8.2026,188.46,188.45,3.05]
[1755361547474,5.3026,188.46,188.44,3.05]
[1755361547782,8.2024,188.47,188.43,138.80773725]
[1755361548079,2.9,188.49,188.44,3.05]
[1755361548277,2.9,188.49,188.43,133.50443725]
[1755361548482,2.9,188.56,188.47,3.05]
[1755361548683,2.9,188.56,188.43,133.50443725]
[1755361548684,2.9,188.56,188.5,3.05]
[1755361550079,2.9,188.56,188.5,5.3012]
[1755361550279,2.9,188.56,188.47,3.05]
[1755361551283,5.3017,188.5,188.46,7.80703725]
[1755361551487,8.3917,188.5,188.48,3.05]
[1755361551676,3.09,188.5,188.48,3.05]
[1755361552082,3.09,188.59,188.46,7.80703725]
[1755361552287,3.09,188.48,188.47,3.05]
[1755361553281,3.09,188.56,188.44,3.05]
[1755361553486,3.09,188.54,188.44,3.05]
[1755361554082,3.09,188.54,188.45,3.05]
[1755361554282,3.09,188.54,188.47,3.05]
[1755361554486,2.50443725,188.57,188.47,3.05]
[1755361554787,3.09,188.55,188.47,3.05]
[1755361556188,5.3017,188.5,188.47,3.05]
[1755361556589,3.09,188.58,188.47,3.05]
[1755361556785,3.09,188.56,188.47,3.05]
[1755361557085,3.09,188.54,188.47,3.05]
[1755361558092,5.3015,188.5,188.47,5.3022]
[1755361558387,5.3015,188.5,188.48,3.05]
[1755361559091,8.391,188.52,188.48,3.05]
[1755361559685,10.34173613,188.51,188.4,133.62443725]
[1755361559890,3.09,188.5,188.4,133.62443725]
[1755361560191,3.09,188.45,188.41,5.3039]
[1755361560393,3.09,188.45,188.4,133.62443725]
[1755361560592,3.09,188.49,188.37,7.80923725]
[1755361560888,4.11154672,188.48,188.37,139.04923725]
[1755361561093,11.03032848,188.47,188.34,0.92367719]
[1755361561294,11.03032848,188.47,188.32,358.86443725]
[1755361561295,3.09,188.45,188.32,358.86443725]
[1755361561592,3.09,188.43,188.33,1.63]
[1755361564392,3.09,188.43,188.34,1.63]
[1755361565582,3.09,188.43,188.38,5.3047]
[1755361565781,3.09,188.42,188.38,5.3047]
[1755361565985,3.09,188.42,188.4,1.63]
[1755361566182,3.09,188.5,188.33,6.84708633]
[1755361566390,3.09,188.48,188.35,1.63]
[1755361567389,10.34629659,188.47,188.35,1.63]
[1755361567590,4.29324975,188.51,188.38,5.3047]
[1755361567591,3.09,188.46,188.38,5.3047]
[1755361567790,3.09,188.46,188.39,1.63]
[1755361568191,3.09,188.46,188.35,1.63]
[1755361568494,3.09,188.46,188.38,1.63]
[1755361569488,8.3939,188.42,188.39,1.63]
[1755361569796,7.49609375,188.49,188.34,133.15]
[1755361570095,3.09,188.47,188.35,1.63]
[1755361570394,3.09,188.39,188.37,1.63]
[1755361570896,7.49609375,188.47,188.34,133.15]
[1755361571199,3.09,188.45,188.34,133.15]
[1755361571393,3.09,188.43,188.34,133.15]
[1755361571597,3.09,188.41,188.34,133.15]
[1755361572097,3.09,188.41,188.34,131.52]
[1755361572297,8.3956,188.36,188.34,133.15]
[1755361572497,5.3056,188.36,188.34,131.52]
[1755361572699,3.09,188.44,188.34,131.52]
[1755361572996,8.3956,188.35,188.34,131.52]
[1755361573298,3.09,188.37,188.34,133.15]
[1755361573600,3.09,188.36,188.34,133.15]
[1755361573800,5.3059,188.35,188.32,1.63]
[1755361573996,3.09,188.35,188.32,1.63]
[1755361574196,3.09,188.35,188.33,1.63]
[1755361574399,8.3957,188.35,188.33,1.63]
[1755361574796,3.09,188.35,188.33,1.63]
[1755361575299,3.09,188.34,188.31,131.46]
[1755361575492,3.09,188.34,188.32,1.64]
[1755361575999,3.09,188.33,188.31,131.46]